[Event "Titled Tuesday Blitz February 15 Late 2022"]
[White "Petrosyan, Manuel"]
[Black "Janaszak, Dawid"]
[WhiteFideId "13300857"]
[BlackFideId "1119206"]
[WhiteElo "2592"]
[BlackElo "2199"]
[Result "1-0"]
[Round "04"]
[TimeControl "180+1"]
[Date "2022.02.15"]
[WhiteClock "0:00:43"]
[BlackClock "0:00:04"]

1. e4 {[%clk 0:03:00]}  c5 {[%clk 0:02:59]} 2. Nf3 {[%clk 0:03:00]}  Nc6 {[%clk 0:03:00]} 3. Bb5 {[%clk 0:03:00]}  d6 {[%clk 0:02:58]} 4. Bxc6+ {[%clk 0:03:00]}  bxc6 {[%clk 0:02:59]} 5. e5 {[%clk 0:03:00]}  dxe5 {[%clk 0:02:51]} 6. Nxe5 {[%clk 0:02:59]}  Qd5 {[%clk 0:02:51]} 7. Nf3 {[%clk 0:02:58]}  Bg4 {[%clk 0:02:48]} 8. d3 {[%clk 0:02:49]}  Nf6 {[%clk 0:02:25]} 9. Nbd2 {[%clk 0:02:47]}  e6 {[%clk 0:02:14]} 10. h3 {[%clk 0:02:44]}  Bh5 {[%clk 0:02:14]} 11. O-O {[%clk 0:02:44]}  Be7 {[%clk 0:02:13]} 12. Qe1 {[%clk 0:02:42]}  O-O {[%clk 0:02:10]} 13. Ne5 {[%clk 0:02:42]}  Nd7 {[%clk 0:01:48]} 14. Ndc4 {[%clk 0:02:36]}  Nxe5 {[%clk 0:01:46]} 15. Qxe5 {[%clk 0:02:37]}  Bf6 {[%clk 0:01:38]} 16. Qg3 {[%clk 0:02:33]}  Rab8 {[%clk 0:01:24]} 17. Rb1 {[%clk 0:02:26]}  a5 {[%clk 0:01:20]} 18. a4 {[%clk 0:02:24]}  Qd8 {[%clk 0:00:50]} 19. Bf4 {[%clk 0:02:17]}  Rb4 {[%clk 0:00:46]} 20. b3 {[%clk 0:02:12]}  Bd4 {[%clk 0:00:35]} 21. Bc7 {[%clk 0:02:03]}  Qa8 {[%clk 0:00:26]} 22. Rbc1 {[%clk 0:01:32]}  Bc3 {[%clk 0:00:26]} 23. Be5 {[%clk 0:01:27]}  Bxe5 {[%clk 0:00:17]} 24. Qxe5 {[%clk 0:01:28]}  Bg6 {[%clk 0:00:16]} 25. Qxc5 {[%clk 0:01:29]}  Rbb8 {[%clk 0:00:10]} 26. Qxa5 {[%clk 0:01:27]}  Qb7 {[%clk 0:00:09]} 27. Qc3 {[%clk 0:01:27]}  c5 {[%clk 0:00:09]} 28. a5 {[%clk 0:01:24]}  Qc6 {[%clk 0:00:09]} 29. Rfe1 {[%clk 0:01:23]}  f6 {[%clk 0:00:09]} 30. Qd2 {[%clk 0:01:16]}  e5 {[%clk 0:00:09]} 31. Qe3 {[%clk 0:01:13]}  Bf7 {[%clk 0:00:09]} 32. Ra1 {[%clk 0:01:07]}  Bd5 {[%clk 0:00:09]} 33. f3 {[%clk 0:01:06]}  Kh8 {[%clk 0:00:08]} 34. Nb6 {[%clk 0:01:05]}  Be6 {[%clk 0:00:07]} 35. Qe4 {[%clk 0:01:06]}  Qb5 {[%clk 0:00:06]} 36. Qa4 {[%clk 0:01:04]}  Qa6 {[%clk 0:00:05]} 37. Qc6 {[%clk 0:01:04]}  Bf7 {[%clk 0:00:05]} 38. Qxc5 {[%clk 0:01:04]}  Qb7 {[%clk 0:00:04]} 39. c4 {[%clk 0:01:02]}  Rfd8 {[%clk 0:00:03]} 40. Red1 {[%clk 0:00:59]}  Qa7 {[%clk 0:00:04]} 41. b4 {[%clk 0:00:55]}  Rb7 {[%clk 0:00:04]} 42. b5 {[%clk 0:00:53]}  Rc7 {[%clk 0:00:05]} 43. Qf2 {[%clk 0:00:51]}  f5 {[%clk 0:00:04]} 44. a6 {[%clk 0:00:46]}  e4 {[%clk 0:00:03]} 45. dxe4 {[%clk 0:00:44]}  Re8 {[%clk 0:00:03]} 46. exf5 {[%clk 0:00:43]}  Rd7 {[%clk 0:00:04]} 47. Nxd7 {[%clk 0:00:43]} 1-0


[Site "https://www.chess.com"]

[Event "Titled Tuesday Blitz February 15 Late 2022"]
[White "Pichot, Alan"]
[Black "Tregubov, Pavel V."]
[WhiteFideId "110973"]
[BlackFideId "4115341"]
[WhiteElo "2543"]
[BlackElo "2341"]
[Result "0-1"]
[Round "04"]
[TimeControl "180+1"]
[Date "2022.02.15"]
[WhiteClock "0:00:02"]
[BlackClock "0:00:07"]

1. e4 {[%clk 0:03:00]}  c5 {[%clk 0:02:59]} 2. Nf3 {[%clk 0:02:58]}  e6 {[%clk 0:02:59]} 3. d4 {[%clk 0:02:58]}  cxd4 {[%clk 0:03:00]} 4. Nxd4 {[%clk 0:02:59]}  Nc6 {[%clk 0:03:00]} 5. Nc3 {[%clk 0:02:59]}  Nf6 {[%clk 0:03:00]} 6. Be2 {[%clk 0:02:56]}  Bb4 {[%clk 0:03:00]} 7. O-O {[%clk 0:02:51]}  Bxc3 {[%clk 0:03:00]} 8. bxc3 {[%clk 0:02:51]}  Nxe4 {[%clk 0:03:00]} 9. Nxc6 {[%clk 0:02:52]}  bxc6 {[%clk 0:02:58]} 10. Bd3 {[%clk 0:02:52]}  d5 {[%clk 0:02:53]} 11. Ba3 {[%clk 0:02:41]}  c5 {[%clk 0:02:32]} 12. Bxe4 {[%clk 0:02:16]}  dxe4 {[%clk 0:02:32]} 13. Qg4 {[%clk 0:02:16]}  O-O {[%clk 0:02:21]} 14. Bxc5 {[%clk 0:02:15]}  f5 {[%clk 0:02:13]} 15. Qf4 {[%clk 0:02:14]}  Rf7 {[%clk 0:02:09]} 16. Rfd1 {[%clk 0:02:13]}  Rd7 {[%clk 0:02:07]} 17. Bd4 {[%clk 0:02:08]}  Rd5 {[%clk 0:01:54]} 18. Rdb1 {[%clk 0:01:40]}  Ba6 {[%clk 0:01:50]} 19. h4 {[%clk 0:01:35]}  Qd6 {[%clk 0:01:36]} 20. Qxd6 {[%clk 0:01:26]}  Rxd6 {[%clk 0:01:36]} 21. Rb4 {[%clk 0:01:27]}  Rd5 {[%clk 0:01:15]} 22. Rab1 {[%clk 0:01:13]}  e5 {[%clk 0:01:11]} 23. Rb8+ {[%clk 0:01:12]}  Rxb8 {[%clk 0:01:11]} 24. Rxb8+ {[%clk 0:01:13]}  Kf7 {[%clk 0:01:11]} 25. Bxa7 {[%clk 0:01:13]}  Rd1+ {[%clk 0:01:02]} 26. Kh2 {[%clk 0:01:11]}  Rd2 {[%clk 0:01:03]} 27. Rb6 {[%clk 0:01:05]}  Bf1 {[%clk 0:00:57]} 28. Rb7+ {[%clk 0:01:04]}  Kf6 {[%clk 0:00:54]} 29. Rb1 {[%clk 0:00:40]}  Bc4 {[%clk 0:00:44]} 30. Rb2 {[%clk 0:00:30]}  f4 {[%clk 0:00:40]} 31. Rb4 {[%clk 0:00:28]}  Bd5 {[%clk 0:00:36]} 32. c4 {[%clk 0:00:28]}  e3 {[%clk 0:00:25]} 33. cxd5 {[%clk 0:00:22]}  exf2 {[%clk 0:00:18]} 34. Bxf2 {[%clk 0:00:10]}  Rxf2 {[%clk 0:00:18]} 35. Rc4 {[%clk 0:00:10]}  Rd2 {[%clk 0:00:15]} 36. Rc5 {[%clk 0:00:07]}  e4 {[%clk 0:00:15]} 37. d6 {[%clk 0:00:04]}  Rxd6 {[%clk 0:00:13]} 38. Rc4 {[%clk 0:00:03]}  Kf5 {[%clk 0:00:13]} 39. Rc8 {[%clk 0:00:03]}  Rd2 {[%clk 0:00:13]} 40. Kg1 {[%clk 0:00:01]}  e3 {[%clk 0:00:12]} 41. Kf1 {[%clk 0:00:02]}  Rf2+ {[%clk 0:00:11]} 42. Kg1 {[%clk 0:00:02]}  Rd2 {[%clk 0:00:11]} 43. Kf1 {[%clk 0:00:03]}  Kg4 {[%clk 0:00:11]} 44. a4 {[%clk 0:00:02]}  Kxh4 {[%clk 0:00:09]} 45. a5 {[%clk 0:00:02]}  Rf2+ {[%clk 0:00:08]} 46. Kg1 {[%clk 0:00:01]}  Rd2 {[%clk 0:00:08]} 47. Kf1 {[%clk 0:00:01]}  Rd1+ {[%clk 0:00:07]} 48. Ke2 {[%clk 0:00:01]}  Ra1 {[%clk 0:00:08]} 49. Kf3 {[%clk 0:00:01]}  Rf1+ {[%clk 0:00:07]} 50. Ke2 {[%clk 0:00:01]}  Rf2+ {[%clk 0:00:07]} 51. Ke1 {[%clk 0:00:02]}  Rxg2 {[%clk 0:00:07]} 52. Rc4 {[%clk 0:00:02]}  Kg3 {[%clk 0:00:07]} 53. a6 {[%clk 0:00:02]}  f3 {[%clk 0:00:07]} 54. Kd1 {[%clk 0:00:02]}  Rg1# {[%clk 0:00:07]} 0-1


[Site "https://www.chess.com"]

[Event "Titled Tuesday Blitz February 15 Late 2022"]
[White "Plotkin, Mark"]
[Black "Deac, Bogdan-Daniel"]
[WhiteFideId "2611651"]
[BlackFideId "1226380"]
[WhiteElo "2178"]
[BlackElo "2646"]
[Result "0-1"]
[Round "04"]
[TimeControl "180+1"]
[Date "2022.02.15"]
[WhiteClock "0:00:01"]
[BlackClock "0:00:05"]

1. e4 {[%clk 0:03:00]}  c5 {[%clk 0:03:00]} 2. d4 {[%clk 0:03:00]}  cxd4 {[%clk 0:03:00]} 3. c3 {[%clk 0:03:00]}  d3 {[%clk 0:02:59]} 4. Nf3 {[%clk 0:03:00]}  g6 {[%clk 0:02:59]} 5. Bxd3 {[%clk 0:03:00]}  Bg7 {[%clk 0:02:59]} 6. O-O {[%clk 0:03:00]}  Nc6 {[%clk 0:03:00]} 7. Be3 {[%clk 0:02:58]}  Nf6 {[%clk 0:02:58]} 8. Nbd2 {[%clk 0:02:57]}  O-O {[%clk 0:02:56]} 9. h3 {[%clk 0:02:57]}  d6 {[%clk 0:02:55]} 10. Qe2 {[%clk 0:02:55]}  b6 {[%clk 0:02:53]} 11. Rfd1 {[%clk 0:02:54]}  Bb7 {[%clk 0:02:52]} 12. Nd4 {[%clk 0:02:54]}  Qc7 {[%clk 0:02:50]} 13. Rac1 {[%clk 0:02:52]}  a6 {[%clk 0:02:47]} 14. f4 {[%clk 0:02:52]}  b5 {[%clk 0:02:44]} 15. N2f3 {[%clk 0:02:51]}  Nd7 {[%clk 0:02:42]} 16. Nb3 {[%clk 0:02:44]}  Nb6 {[%clk 0:02:34]} 17. Qf2 {[%clk 0:02:26]}  Na4 {[%clk 0:02:31]} 18. Rc2 {[%clk 0:02:20]}  Rac8 {[%clk 0:02:28]} 19. Rcd2 {[%clk 0:02:12]}  Na5 {[%clk 0:02:10]} 20. Nxa5 {[%clk 0:01:54]}  Qxa5 {[%clk 0:02:11]} 21. Bb1 {[%clk 0:01:49]}  Qc7 {[%clk 0:02:07]} 22. f5 {[%clk 0:01:44]}  Nc5 {[%clk 0:02:00]} 23. Qh4 {[%clk 0:01:42]}  Qc6 {[%clk 0:01:32]} 24. Rd4 {[%clk 0:01:11]}  Rce8 {[%clk 0:01:10]} 25. Bh6 {[%clk 0:01:05]}  f6 {[%clk 0:00:52]} 26. Bxg7 {[%clk 0:00:54]}  Kxg7 {[%clk 0:00:52]} 27. e5 {[%clk 0:00:48]}  dxe5 {[%clk 0:00:48]} 28. Rg4 {[%clk 0:00:47]}  Rd8 {[%clk 0:00:35]} 29. Rf1 {[%clk 0:00:40]}  Nd3 {[%clk 0:00:26]} 30. Bxd3 {[%clk 0:00:37]}  Rxd3 {[%clk 0:00:25]} 31. Qh5 {[%clk 0:00:31]}  Rh8 {[%clk 0:00:11]} 32. Kh1 {[%clk 0:00:15]}  Qe8 {[%clk 0:00:09]} 33. Nh4 {[%clk 0:00:08]}  Rxh3+ {[%clk 0:00:08]} 34. Kg1 {[%clk 0:00:07]}  Rxh4 {[%clk 0:00:07]} 35. Qxh4 {[%clk 0:00:07]}  Qf7 {[%clk 0:00:06]} 36. Rd1 {[%clk 0:00:05]}  Bc6 {[%clk 0:00:05]} 37. b3 {[%clk 0:00:04]}  a5 {[%clk 0:00:03]} 38. Qg3 {[%clk 0:00:04]}  Re8 {[%clk 0:00:02]} 39. Qe3 {[%clk 0:00:04]}  g5 {[%clk 0:00:02]} 40. Qc5 {[%clk 0:00:04]}  h5 {[%clk 0:00:02]} 41. Rg3 {[%clk 0:00:03]}  Be4 {[%clk 0:00:03]} 42. Rd7 {[%clk 0:00:03]}  Bxf5 {[%clk 0:00:03]} 43. Rc7 {[%clk 0:00:03]}  Bg6 {[%clk 0:00:03]} 44. Rf3 {[%clk 0:00:03]}  h4 {[%clk 0:00:04]} 45. Kh2 {[%clk 0:00:02]}  Qe6 {[%clk 0:00:04]} 46. Re3 {[%clk 0:00:03]}  e4 {[%clk 0:00:04]} 47. Qxb5 {[%clk 0:00:03]}  Kf7 {[%clk 0:00:04]} 48. Qc5 {[%clk 0:00:03]}  g4 {[%clk 0:00:04]} 49. Kg1 {[%clk 0:00:03]}  g3 {[%clk 0:00:05]} 50. Re1 {[%clk 0:00:03]}  Qg4 {[%clk 0:00:05]} 51. Rf1 {[%clk 0:00:03]}  h3 {[%clk 0:00:05]} 52. Qd4 {[%clk 0:00:04]}  h2+ {[%clk 0:00:04]} 53. Kh1 {[%clk 0:00:04]}  Qg5 {[%clk 0:00:05]} 54. Rc5 {[%clk 0:00:02]}  Qh4 {[%clk 0:00:05]} 55. Rc7 {[%clk 0:00:02]}  Qg5 {[%clk 0:00:04]} 56. Rc5 {[%clk 0:00:01]}  Qg4 {[%clk 0:00:04]} 57. Rc6 {[%clk 0:00:01]}  Qe6 {[%clk 0:00:05]} 0-1


[Site "https://www.chess.com"]

[Event "Titled Tuesday Blitz February 15 Late 2022"]
[White "Przybylski, Wojciech"]
[Black "Ankerst, Mihael"]
[WhiteFideId "1117599"]
[BlackFideId "14602369"]
[WhiteElo "2133"]
[BlackElo "2306"]
[Result "1-0"]
[Round "04"]
[TimeControl "180+1"]
[Date "2022.02.16"]
[WhiteClock "0:00:11"]
[BlackClock "0:00:42"]

1. e4 {[%clk 0:03:00]}  c5 {[%clk 0:02:59]} 2. Nf3 {[%clk 0:02:59]}  Qb6 {[%clk 0:02:58]} 3. Nc3 {[%clk 0:02:53]}  Nc6 {[%clk 0:02:59]} 4. Nd5 {[%clk 0:02:46]}  Qa5 {[%clk 0:02:59]} 5. c3 {[%clk 0:02:45]}  e6 {[%clk 0:02:58]} 6. Ne3 {[%clk 0:02:44]}  Be7 {[%clk 0:02:57]} 7. e5 {[%clk 0:02:38]}  Qc7 {[%clk 0:02:50]} 8. d4 {[%clk 0:02:34]}  d5 {[%clk 0:02:15]} 9. Be2 {[%clk 0:02:29]}  Nh6 {[%clk 0:01:54]} 10. O-O {[%clk 0:02:24]}  O-O {[%clk 0:01:52]} 11. a3 {[%clk 0:02:18]}  Bd7 {[%clk 0:01:51]} 12. Nc2 {[%clk 0:02:04]}  Rac8 {[%clk 0:01:38]} 13. Bxh6 {[%clk 0:02:02]}  gxh6 {[%clk 0:01:38]} 14. Rc1 {[%clk 0:01:53]}  Qb6 {[%clk 0:01:32]} 15. b4 {[%clk 0:01:50]}  cxd4 {[%clk 0:01:31]} 16. cxd4 {[%clk 0:01:47]}  a6 {[%clk 0:01:30]} 17. Ne3 {[%clk 0:01:42]}  Na7 {[%clk 0:01:28]} 18. Rc5 {[%clk 0:01:23]}  Qd8 {[%clk 0:01:17]} 19. Ne1 {[%clk 0:01:08]}  Bb5 {[%clk 0:01:14]} 20. Nd3 {[%clk 0:01:07]}  Qd7 {[%clk 0:01:05]} 21. Ng4 {[%clk 0:01:04]}  Kg7 {[%clk 0:01:04]} 22. Qd2 {[%clk 0:00:59]}  Kh8 {[%clk 0:00:47]} 23. Qxh6 {[%clk 0:00:56]}  Rg8 {[%clk 0:00:46]} 24. Nf6 {[%clk 0:00:32]}  Bxf6 {[%clk 0:00:44]} 25. Qxf6+ {[%clk 0:00:31]}  Rg7 {[%clk 0:00:43]} 26. Rfc1 {[%clk 0:00:29]}  Nc6 {[%clk 0:00:40]} 27. Nf4 {[%clk 0:00:17]}  Qd8 {[%clk 0:00:30]} 28. Bxb5 {[%clk 0:00:15]}  axb5 {[%clk 0:00:28]} 29. Qxd8+ {[%clk 0:00:14]}  Rxd8 {[%clk 0:00:28]} 30. Ne2 {[%clk 0:00:14]}  Ra8 {[%clk 0:00:24]} 31. R1c3 {[%clk 0:00:13]}  Rg4 {[%clk 0:00:14]} 32. f4 {[%clk 0:00:12]}  h5 {[%clk 0:00:13]} 33. Kf2 {[%clk 0:00:12]}  h4 {[%clk 0:00:13]} 34. Rxb5 {[%clk 0:00:11]}  Rag8 {[%clk 0:00:13]} 35. g3 {[%clk 0:00:12]}  R4g6 {[%clk 0:00:13]} 36. Rxb7 {[%clk 0:00:10]}  Nd8 {[%clk 0:00:12]} 37. Rd7 {[%clk 0:00:10]}  Kh7 {[%clk 0:00:12]} 38. Rc8 {[%clk 0:00:10]}  hxg3+ {[%clk 0:00:08]} 39. hxg3 {[%clk 0:00:09]}  Nc6 {[%clk 0:00:05]} 40. Rxg8 {[%clk 0:00:08]}  Kxg8 {[%clk 0:00:05]} 41. Rc7 {[%clk 0:00:07]}  Nxd4 {[%clk 0:00:04]} 42. Nxd4 {[%clk 0:00:07]}  Rh6 {[%clk 0:00:05]} 43. Rc8+ {[%clk 0:00:07]}  Kg7 {[%clk 0:00:04]} 44. Kg2 {[%clk 0:00:07]}  Rh7 {[%clk 0:00:04]} 45. Nf3 {[%clk 0:00:07]}  Kg6 {[%clk 0:00:05]} 46. a4 {[%clk 0:00:07]}  Rg7 {[%clk 0:00:06]} 47. Ng5 {[%clk 0:00:05]}  Kf5 {[%clk 0:00:07]} 48. Rf8 {[%clk 0:00:03]}  Kg4 {[%clk 0:00:06]} 49. Rxf7 {[%clk 0:00:03]}  Rg6 {[%clk 0:00:07]} 50. Rf6 {[%clk 0:00:04]}  Rg8 {[%clk 0:00:07]} 51. Nxe6 {[%clk 0:00:04]}  Rc8 {[%clk 0:00:08]} 52. Nd4 {[%clk 0:00:03]}  Rc4 {[%clk 0:00:07]} 53. Rg6+ {[%clk 0:00:04]}  Kh5 {[%clk 0:00:08]} 54. Rg5+ {[%clk 0:00:04]}  Kh6 {[%clk 0:00:09]} 55. Nf3 {[%clk 0:00:04]}  Rxb4 {[%clk 0:00:10]} 56. e6 {[%clk 0:00:04]}  Rb2+ {[%clk 0:00:11]} 57. Kh3 {[%clk 0:00:04]}  Re2 {[%clk 0:00:11]} 58. Kg4 {[%clk 0:00:04]}  d4 {[%clk 0:00:12]} 59. Rd5 {[%clk 0:00:04]}  d3 {[%clk 0:00:12]} 60. Rxd3 {[%clk 0:00:04]}  Rxe6 {[%clk 0:00:13]} 61. Rd5 {[%clk 0:00:04]}  Ra6 {[%clk 0:00:13]} 62. Rh5+ {[%clk 0:00:04]}  Kg7 {[%clk 0:00:14]} 63. Rg5+ {[%clk 0:00:04]}  Kf8 {[%clk 0:00:15]} 64. a5 {[%clk 0:00:05]}  Ra7 {[%clk 0:00:15]} 65. Rf5+ {[%clk 0:00:05]}  Kg8 {[%clk 0:00:16]} 66. Ng5 {[%clk 0:00:05]}  Kh8 {[%clk 0:00:16]} 67. Re5 {[%clk 0:00:05]}  Kg7 {[%clk 0:00:17]} 68. Rd5 {[%clk 0:00:06]}  Kg8 {[%clk 0:00:18]} 69. Rc5 {[%clk 0:00:06]}  Kh8 {[%clk 0:00:19]} 70. Rb5 {[%clk 0:00:07]}  Kg8 {[%clk 0:00:19]} 71. Rf5 {[%clk 0:00:07]}  Kh8 {[%clk 0:00:20]} 72. Re5 {[%clk 0:00:07]}  Kg7 {[%clk 0:00:21]} 73. f5 {[%clk 0:00:07]}  Kh6 {[%clk 0:00:21]} 74. Re6+ {[%clk 0:00:07]}  Kg7 {[%clk 0:00:22]} 75. a6 {[%clk 0:00:07]}  Ra8 {[%clk 0:00:22]} 76. Rg6+ {[%clk 0:00:07]}  Kf8 {[%clk 0:00:22]} 77. Rf6+ {[%clk 0:00:07]}  Ke7 {[%clk 0:00:23]} 78. Re6+ {[%clk 0:00:08]}  Kf8 {[%clk 0:00:24]} 79. Kf4 {[%clk 0:00:08]}  Kg7 {[%clk 0:00:25]} 80. g4 {[%clk 0:00:08]}  Kh8 {[%clk 0:00:26]} 81. Rd6 {[%clk 0:00:08]}  Kg8 {[%clk 0:00:27]} 82. Rc6 {[%clk 0:00:09]}  Kg7 {[%clk 0:00:28]} 83. Rb6 {[%clk 0:00:09]}  Kf8 {[%clk 0:00:29]} 84. Nf3 {[%clk 0:00:09]}  Kg8 {[%clk 0:00:30]} 85. Nd4 {[%clk 0:00:10]}  Rxa6 {[%clk 0:00:30]} 86. Rxa6 {[%clk 0:00:10]}  Kg7 {[%clk 0:00:31]} 87. Re6 {[%clk 0:00:08]}  Kf8 {[%clk 0:00:32]} 88. Ke5 {[%clk 0:00:08]}  Kg8 {[%clk 0:00:33]} 89. g5 {[%clk 0:00:09]}  Kh8 {[%clk 0:00:33]} 90. Ne2 {[%clk 0:00:09]}  Kg8 {[%clk 0:00:34]} 91. Nc1 {[%clk 0:00:10]}  Kh8 {[%clk 0:00:35]} 92. Na2 {[%clk 0:00:10]}  Kg8 {[%clk 0:00:36]} 93. Nc3 {[%clk 0:00:11]}  Kh8 {[%clk 0:00:37]} 94. Nd5 {[%clk 0:00:11]}  Kg8 {[%clk 0:00:38]} 95. Nb4 {[%clk 0:00:11]}  Kh8 {[%clk 0:00:39]} 96. Re7 {[%clk 0:00:11]}  Kg8 {[%clk 0:00:40]} 97. Kf6 {[%clk 0:00:11]}  Kh8 {[%clk 0:00:41]} 98. g6 {[%clk 0:00:11]}  Kg8 {[%clk 0:00:42]} 99. Re8# {[%clk 0:00:11]} 1-0


[Site "https://www.chess.com"]

[Event "Titled Tuesday Blitz February 15 Late 2022"]
[White "Ramirez, Alejandro"]
[Black "Vovk, Orest"]
[WhiteFideId "6500617"]
[BlackFideId "14113490"]
[WhiteElo "2786"]
[BlackElo "2570"]
[Result "1-0"]
[Round "04"]
[TimeControl "180+1"]
[Date "2022.02.16"]
[WhiteClock "0:00:23"]
[BlackClock "0:00:02"]

1. Nf3 {[%clk 0:02:56]}  h6 {[%clk 0:02:58]} 2. e4 {[%clk 0:02:55]}  g5 {[%clk 0:02:58]} 3. d4 {[%clk 0:02:55]}  Bg7 {[%clk 0:02:58]} 4. h4 {[%clk 0:02:50]}  g4 {[%clk 0:02:57]} 5. Ne5 {[%clk 0:02:50]}  h5 {[%clk 0:02:52]} 6. Be3 {[%clk 0:02:50]}  d6 {[%clk 0:02:51]} 7. Nd3 {[%clk 0:02:50]}  Nf6 {[%clk 0:02:45]} 8. Nc3 {[%clk 0:02:50]}  c6 {[%clk 0:02:42]} 9. Qd2 {[%clk 0:02:50]}  Qa5 {[%clk 0:02:40]} 10. O-O-O {[%clk 0:02:47]}  b5 {[%clk 0:02:39]} 11. a3 {[%clk 0:02:45]}  Na6 {[%clk 0:02:29]} 12. e5 {[%clk 0:02:37]}  dxe5 {[%clk 0:02:20]} 13. Nxe5 {[%clk 0:02:18]}  Bb7 {[%clk 0:02:15]} 14. Ne4 {[%clk 0:02:07]}  Qxd2+ {[%clk 0:02:11]} 15. Nxd2 {[%clk 0:02:08]}  Nd5 {[%clk 0:02:07]} 16. Nd3 {[%clk 0:02:07]}  Nxe3 {[%clk 0:02:06]} 17. fxe3 {[%clk 0:02:07]}  Bh6 {[%clk 0:02:05]} 18. Re1 {[%clk 0:02:06]}  O-O-O {[%clk 0:02:02]} 19. Nb3 {[%clk 0:02:06]}  Kc7 {[%clk 0:01:49]} 20. Kb1 {[%clk 0:02:06]}  Bc8 {[%clk 0:01:49]} 21. g3 {[%clk 0:01:58]}  Be6 {[%clk 0:01:43]} 22. Nbc5 {[%clk 0:01:50]}  Nxc5 {[%clk 0:01:40]} 23. Nxc5 {[%clk 0:01:51]}  Bc8 {[%clk 0:01:32]} 24. Bd3 {[%clk 0:01:46]}  f6 {[%clk 0:01:21]} 25. Rhf1 {[%clk 0:01:45]}  Rd6 {[%clk 0:01:10]} 26. c3 {[%clk 0:01:40]}  Rg8 {[%clk 0:00:39]} 27. Kc2 {[%clk 0:01:38]}  Rg7 {[%clk 0:00:22]} 28. Re2 {[%clk 0:01:33]}  Rg8 {[%clk 0:00:22]} 29. a4 {[%clk 0:01:32]}  a6 {[%clk 0:00:17]} 30. Bf5 {[%clk 0:01:33]}  e6 {[%clk 0:00:12]} 31. Bd3 {[%clk 0:01:33]}  f5 {[%clk 0:00:12]} 32. e4 {[%clk 0:01:34]}  f4 {[%clk 0:00:07]} 33. gxf4 {[%clk 0:01:33]}  g3 {[%clk 0:00:07]} 34. e5 {[%clk 0:01:30]}  Rdd8 {[%clk 0:00:06]} 35. Rg2 {[%clk 0:01:28]}  Rg4 {[%clk 0:00:05]} 36. Ne4 {[%clk 0:01:18]}  Bxf4 {[%clk 0:00:02]} 37. Nf6 {[%clk 0:01:18]}  Rxh4 {[%clk 0:00:02]} 38. Be2 {[%clk 0:01:11]}  Rh2 {[%clk 0:00:02]} 39. Rxh2 {[%clk 0:01:01]}  gxh2 {[%clk 0:00:03]} 40. Nxh5 {[%clk 0:01:02]}  Bg5 {[%clk 0:00:03]} 41. Rh1 {[%clk 0:01:02]}  Rh8 {[%clk 0:00:03]} 42. Rxh2 {[%clk 0:01:02]}  bxa4 {[%clk 0:00:03]} 43. Rg2 {[%clk 0:01:02]}  Bd8 {[%clk 0:00:03]} 44. Rg7+ {[%clk 0:01:00]}  Kb6 {[%clk 0:00:03]} 45. Kd2 {[%clk 0:00:44]}  c5 {[%clk 0:00:03]} 46. Nf4 {[%clk 0:00:39]}  cxd4 {[%clk 0:00:03]} 47. cxd4 {[%clk 0:00:40]}  Bh4 {[%clk 0:00:03]} 48. Bc4 {[%clk 0:00:29]}  Bf2 {[%clk 0:00:02]} 49. Kd3 {[%clk 0:00:22]}  Rd8 {[%clk 0:00:02]} 50. Ne2 {[%clk 0:00:21]}  Bh4 {[%clk 0:00:02]} 51. Rg6 {[%clk 0:00:21]}  Re8 {[%clk 0:00:02]} 52. Nf4 {[%clk 0:00:21]}  Bd8 {[%clk 0:00:02]} 53. Bxe6 {[%clk 0:00:21]}  Bxe6 {[%clk 0:00:03]} 54. Rxe6+ {[%clk 0:00:22]}  Rxe6 {[%clk 0:00:03]} 55. Nxe6 {[%clk 0:00:23]}  Be7 {[%clk 0:00:04]} 56. Kc4 {[%clk 0:00:20]}  a3 {[%clk 0:00:03]} 57. bxa3 {[%clk 0:00:21]}  Bxa3 {[%clk 0:00:04]} 58. Nc5 {[%clk 0:00:22]}  Bc1 {[%clk 0:00:01]} 59. d5 {[%clk 0:00:21]}  Bg5 {[%clk 0:00:02]} 60. d6 {[%clk 0:00:21]}  Kc6 {[%clk 0:00:02]} 61. Nd3 {[%clk 0:00:20]}  Bh4 {[%clk 0:00:02]} 62. Nb4+ {[%clk 0:00:20]}  Kd7 {[%clk 0:00:02]} 63. Kd5 {[%clk 0:00:21]}  Bg3 {[%clk 0:00:02]} 64. e6+ {[%clk 0:00:22]}  Ke8 {[%clk 0:00:02]} 65. d7+ {[%clk 0:00:22]}  Ke7 {[%clk 0:00:02]} 66. Nc6+ {[%clk 0:00:23]} 1-0


[Site "https://www.chess.com"]

[Event "Titled Tuesday Blitz February 15 Late 2022"]
[White "Remolar Gallen, Jose"]
[Black "Josse, Mark"]
[WhiteFideId "2215187"]
[BlackFideId "414476"]
[WhiteElo "2205"]
[BlackElo "2249"]
[Result "0-1"]
[Round "04"]
[TimeControl "180+1"]
[Date "2022.02.16"]
[WhiteClock "0:00:14"]
[BlackClock "0:00:46"]

1. e4 {[%clk 0:03:00]}  e6 {[%clk 0:02:58]} 2. Nf3 {[%clk 0:03:00]}  d5 {[%clk 0:02:59]} 3. e5 {[%clk 0:03:00]}  c5 {[%clk 0:02:57]} 4. b4 {[%clk 0:03:00]}  b6 {[%clk 0:02:56]} 5. a3 {[%clk 0:03:00]}  Nc6 {[%clk 0:02:44]} 6. b5 {[%clk 0:02:54]}  Na5 {[%clk 0:02:24]} 7. d3 {[%clk 0:02:42]}  Ne7 {[%clk 0:02:24]} 8. g3 {[%clk 0:02:35]}  Qc7 {[%clk 0:02:21]} 9. Bg2 {[%clk 0:02:33]}  Nf5 {[%clk 0:02:15]} 10. O-O {[%clk 0:02:32]}  Be7 {[%clk 0:02:15]} 11. Bb2 {[%clk 0:02:26]}  O-O {[%clk 0:02:15]} 12. Nbd2 {[%clk 0:02:10]}  Bd7 {[%clk 0:02:13]} 13. c4 {[%clk 0:02:08]}  dxc4 {[%clk 0:02:04]} 14. dxc4 {[%clk 0:02:09]}  Rad8 {[%clk 0:02:04]} 15. Qe2 {[%clk 0:02:05]}  h6 {[%clk 0:01:58]} 16. Ne4 {[%clk 0:02:01]}  Bc8 {[%clk 0:01:53]} 17. Rad1 {[%clk 0:01:57]}  Bb7 {[%clk 0:01:52]} 18. Bc3 {[%clk 0:01:34]}  Nb3 {[%clk 0:01:43]} 19. Nf6+ {[%clk 0:01:14]}  gxf6 {[%clk 0:01:35]} 20. exf6 {[%clk 0:01:15]}  Bd6 {[%clk 0:01:35]} 21. Ne5 {[%clk 0:00:44]}  Bxg2 {[%clk 0:01:27]} 22. Kxg2 {[%clk 0:00:23]}  Nbd4 {[%clk 0:01:25]} 23. Qg4+ {[%clk 0:00:23]}  Kh7 {[%clk 0:01:17]} 24. Nc6 {[%clk 0:00:19]}  Nxc6 {[%clk 0:01:08]} 25. bxc6 {[%clk 0:00:20]}  Qxc6+ {[%clk 0:01:08]} 26. Kh3 {[%clk 0:00:20]}  Rg8 {[%clk 0:01:05]} 27. Qh5 {[%clk 0:00:20]}  Rd7 {[%clk 0:01:00]} 28. f4 {[%clk 0:00:19]}  Ne3 {[%clk 0:00:49]} 29. g4 {[%clk 0:00:14]}  Qg2+ {[%clk 0:00:47]} 30. Kh4 {[%clk 0:00:14]}  Qxh2# {[%clk 0:00:46]} 0-1


[Site "https://www.chess.com"]